lending/lending_fUSD_20250131
["ID","MTS","AMOUNT","RATE_DAILY","PERIOD"]
[351137876,1738348284631,-932.35,0.00019312,2]
[351137877,1738348284640,-1577.73,0.00019312,2]
[351137878,1738348284650,-647.42,0.00019312,2]
[351137879,1738348284659,-286.106421,0.00019312,2]
[351137880,1738348284668,-500.0,0.00019312,2]
[351137881,1738348284677,-551.45,0.00019312,2]
[351137882,1738348284687,-2652.51,0.00019312,2]
[351137883,1738348284699,-616.52,0.00019312,2]
[351137884,1738348284708,-611.99,0.00019312,2]
[351137885,1738348284717,-1917.23,0.00019312,2]
[351137886,1738348284726,-1010.98,0.00019312,2]
[351137887,1738348284735,-345.181563,0.00019312,2]
[351137888,1738348284744,-957.27,0.00019312,2]
[351137889,1738348284754,-1127.11,0.00019312,2]
[351137890,1738348284763,-1746.14,0.00019312,2]
[351137891,1738348284772,-683.39,0.00019312,2]
[351137892,1738348284781,-834.53,0.00019312,2]
[351137893,1738348284791,-3304.95,0.00019312,2]
[351137894,1738348284800,-1375.96,0.00019312,2]
[351137895,1738348284809,-1152.1,0.00019312,2]
[351137896,1738348284819,-151.742883,0.00019312,2]
[351137897,1738348284828,-637.73,0.00019312,2]
[351137898,1738348284838,-861.45,0.00019312,2]
[351137899,1738348284847,-1174.79,0.00019312,2]
[351137900,1738348284856,-1552.68,0.00019312,2]
[351137901,1738348284865,-5050.15,0.00019312,2]
[351137902,1738348284875,-1714.15,0.00019312,2]
[351137903,1738348284885,-970.54,0.00019312,2]
[351137904,1738348284895,-974.2,0.00019312,2]
[351137905,1738348284904,-2977.2,0.00019312,2]
[351137906,1738348284914,-2472.78,0.00019312,2]
[351137907,1738348284924,-2130.65,0.00019312,2]
[351137908,1738348284934,-2310.79,0.00019312,2]
[351137909,1738348285312,-3082.33,0.00019312,2]
[351137910,1738348285328,-1236.46,0.00019312,2]
[351137911,1738348285345,-500.0,0.00019312,2]
[351137912,1738348285357,-1531.95,0.00019312,2]
[351137913,1738348285366,-1897.38,0.00019312,2]
[351137914,1738348285375,-197.91273313,0.00019312,2]
[351137915,1738348285384,-4150.61,0.00019312,2]
[351137916,1738348285393,-4363.87,0.00019312,2]
[351137917,1738348285403,-500.0,0.00019312,2]
[351137918,1738348285412,-166.309678,0.00019312,2]
[351137919,1738348285421,-151.74288,0.00019312,2]
[351137920,1738348285430,-977.31,0.00019312,2]
[351137921,1738348285441,-601.03088119,0.00019312,2]
[351137922,1738348285450,-500.0,0.00019312,2]
[351137923,1738348285459,-755.3,0.00019312,2]
[351137924,1738348285469,-1593.71,0.00019312,2]
[351137925,1738348285478,-789.61,0.00019312,2]
[351137926,1738348285487,-500.0,0.00019313,2]
[351137927,1738348285499,-500.0,0.00019313,2]
[351137928,1738348285509,-383.3498806,0.00019313,2]
[351137929,1738348285519,-772.66,0.00019313,2]
[351137930,1738348285528,-500.0,0.00019313,2]
[351137931,1738348285537,-606.93,0.00019313,2]
[351137932,1738348285547,-522.94,0.00019313,2]
[351137933,1738348285556,-691.72,0.00019313,2]
[351137934,1738348285565,-694.08,0.00019313,2]
[351137935,1738348285575,-500.0,0.00019313,2]
[351137936,1738348285586,-500.0,0.00019313,2]
[351137937,1738348285596,-622.01,0.00019313,2]
[351137938,1738348285605,-500.0,0.00019313,2]
[351137939,1738348285615,-500.0,0.00019313,2]
[351137940,1738348285624,-799.89,0.00019313,2]
[351137941,1738348285633,-666.3,0.00019313,2]
[351137942,1738348285643,-536.21,0.00019313,2]
[351137943,1738348285652,-872.1,0.00019313,2]
[351137944,1738348285661,-1030.96,0.00019313,2]
[351137945,1738348285670,-544.21,0.00019313,2]
[351137946,1738348285680,-4715.16,0.00019313,2]
[351137947,1738348285690,-993.3,0.00019313,2]
[351137948,1738348285699,-2605.9,0.00019313,2]
[351137949,1738348285710,-4721.91,0.00019313,2]
[351137950,1738348285719,-2283.47,0.00019313,2]
[351137951,1738348285729,-939.45,0.00019313,2]
[351137952,1738348285739,-2389.08,0.00019313,2]
[351137953,1738348285748,-965.04,0.00019313,2]
[351137954,1738348285757,-557.93,0.00019313,2]
[351137955,1738348285766,-2395.63,0.00019313,2]
[351137956,1738348285775,-1060.87,0.00019313,2]
[351137957,1738348285785,-1276.49,0.00019313,2]
[351137958,1738348285794,-500.0,0.00019313,2]
[351137959,1738348285803,-973.6,0.00019313,2]
[351137960,1738348285811,-870.13,0.00019313,2]
[351137961,1738348285821,-1177.58,0.00019313,2]
[351137962,1738348285830,-510.61,0.00019314,2]
[351137963,1738348285839,-500.0,0.00019314,2]
[351137964,1738348285850,-1455.79,0.00019315,2]
[351137965,1738348285859,-686.9,0.00019315,2]
[351137966,1738348285869,-2551.27,0.00019315,2]
[351137967,1738348285878,-1359.74,0.00019315,2]
[351137968,1738348285887,-3164.08,0.00019315,2]
[351137969,1738348285898,-1771.52,0.00019315,2]
[351137970,1738348285907,-3352.95,0.00019315,2]
[351137971,1738348285918,-1723.08,0.00019315,2]
[351137972,1738348285928,-904.61,0.00019315,2]
[351137973,1738348285937,-3205.13,0.00019315,2]
[351137974,1738348285948,-2877.99,0.00019315,2]
[351137975,1738348285957,-2087.9,0.00019315,2]
[351137976,1738348285967,-2031.19,0.00019315,2]
[351137977,1738348285976,-1464.79,0.00019315,2]
[351137978,1738348285985,-7094.67,0.00019315,2]
[351137979,1738348285994,-846.73,0.00019315,2]
[351137980,1738348286004,-1572.93,0.00019315,2]
[351137981,1738348286013,-150.0,0.00019329,4]
[351137982,1738348286022,-150.0,0.00019329,4]
[351137983,1738348286031,-500.0,0.00019345,2]
[351137984,1738348286040,-150.0,0.00019359,4]
[351137985,1738348286050,-150.0,0.00019385,4]
[351137986,1738348286059,-329.26,0.0001942,2]
[351137987,1738348286068,-267.51128421,0.00019421,2]
[351137988,1738348286077,-150.0,0.00019424,4]
[351137989,1738348286086,-150.0,0.00019441,4]
[351137990,1738348286095,-500.0,0.00019445,2]
[351137991,1738348286103,-500.0,0.00019448,2]
[351137992,1738348286113,-397.69554407,0.00019448,2]
[351137993,1738348286122,-786.06,0.00019448,2]
[351137994,1738348286132,-744.03,0.00019448,2]
[351137995,1738348286141,-1041.45,0.00019448,2]
[351137996,1738348286150,-679.36,0.00019448,2]
[351137997,1738348286160,-500.0,0.00019448,2]
[351137998,1738348286169,-639.49,0.00019448,2]
[351137999,1738348286178,-983.34,0.00019448,2]
[351138000,1738348286188,-853.27,0.00019448,2]
[351138001,1738348286199,-2290.49,0.00019448,2]
[351138002,1738348286208,-15748.87,0.00019448,2]
[351138003,1738348286218,-1756.23,0.00019448,2]
[351138004,1738348286227,-5804.66,0.00019448,2]
[351138005,1738348286237,-1011.15,0.00019448,2]
[351138006,1738348286246,-1398.05,0.00019448,2]
[351138007,1738348286256,-706.26,0.00019448,2]
[351138008,1738348286266,-1396.62,0.00019448,2]
[351138009,1738348286274,-1348.69,0.00019448,2]
[351138010,1738348286284,-1491.37,0.00019448,2]
[351138011,1738348286293,-500.0,0.00019449,2]
[351138012,1738348286303,-500.0,0.00019449,2]
[351138013,1738348286315,-500.0,0.00019449,2]
[351138014,1738348286325,-592.09,0.00019449,2]
[351138015,1738348286334,-541.54,0.00019449,2]
[351138016,1738348286344,-661.57,0.00019449,2]
[351138017,1738348286355,-568.28,0.00019449,2]
[351138018,1738348286365,-517.91,0.00019449,2]
[351138019,1738348286374,-500.0,0.00019449,2]
[351138020,1738348286384,-573.54,0.00019449,2]
[351138021,1738348286394,-730.37,0.00019449,2]
[351138022,1738348286403,-536.25,0.00019449,2]
[351138023,1738348286414,-978.34,0.00019449,2]
[351138024,1738348286425,-519.92,0.00019449,2]
[351138025,1738348286435,-932.35,0.00019449,2]
[351138026,1738348286445,-1577.73,0.00019449,2]
[351138027,1738348286454,-647.42,0.00019449,2]
[351138028,1738348286463,-286.106421,0.00019449,2]
[351138029,1738348286472,-500.0,0.00019449,2]
[351138030,1738348286480,-551.45,0.00019449,2]
[351138031,1738348286491,-2652.51,0.00019449,2]
[351138032,1738348286504,-616.52,0.00019449,2]
[351138033,1738348286514,-611.99,0.00019449,2]
[351138034,1738348286524,-1917.23,0.00019449,2]
[351138035,1738348286535,-1010.98,0.00019449,2]
[351138036,1738348286545,-345.181563,0.00019449,2]
[351138037,1738348286554,-957.27,0.00019449,2]
[351138038,1738348286563,-1127.11,0.00019449,2]
[351138039,1738348286571,-1746.14,0.00019449,2]
[351138040,1738348286580,-683.39,0.00019449,2]
[351138041,1738348286592,-834.53,0.00019449,2]
[351138042,1738348286601,-3304.95,0.00019449,2]
[351138043,1738348286610,-162.579987,0.00019449,2]
[351138044,1738348286619,-1375.96,0.00019449,2]
[351138045,1738348286629,-1152.1,0.00019449,2]
[351138046,1738348286638,-637.73,0.00019449,2]
[351138047,1738348286647,-861.45,0.00019449,2]
[351138048,1738348286656,-1174.79,0.00019449,2]
[351138049,1738348286665,-5050.15,0.00019449,2]
[351138050,1738348286674,-1552.68,0.00019449,2]
[351138051,1738348286684,-1714.15,0.00019449,2]
[351138052,1738348286695,-970.54,0.00019449,2]
[351138053,1738348286703,-974.2,0.00019449,2]
[351138054,1738348286713,-2977.2,0.00019449,2]
[351138055,1738348286722,-2472.78,0.00019449,2]
[351138056,1738348286732,-2130.65,0.00019449,2]
[351138057,1738348286742,-164.88144,0.00019449,2]
[351138058,1738348286753,-2310.79,0.00019449,2]
[351138059,1738348286762,-3082.33,0.00019449,2]
[351138060,1738348286771,-1236.46,0.00019449,2]
[351138061,1738348286780,-500.0,0.00019449,2]
[351138062,1738348286788,-159.421069,0.00019449,2]
[351138063,1738348286798,-1531.95,0.00019449,2]
[351138064,1738348286806,-1897.38,0.00019449,2]
[351138065,1738348286815,-4150.61,0.00019449,2]
[351138066,1738348286824,-4363.87,0.00019449,2]
[351138067,1738348286833,-500.0,0.00019449,2]
[351138068,1738348286843,-977.31,0.00019449,2]
[351138069,1738348286852,-500.0,0.00019449,2]
[351138070,1738348286862,-755.3,0.00019449,2]
[351138071,1738348286871,-1593.71,0.00019449,2]
[351138072,1738348286880,-789.61,0.00019449,2]
[351138073,1738348286890,-209.0,0.0001945,2]
[351138074,1738348286899,-500.0,0.0001945,2]
[351138075,1738348286908,-329.08539847,0.0001945,2]
[351138076,1738348286917,-772.66,0.0001945,2]
[351138077,1738348286926,-209.0,0.0001945,2]
[351138078,1738348286935,-500.0,0.0001945,2]
[351138079,1738348286945,-606.93,0.0001945,2]
[351138080,1738348286954,-522.94,0.0001945,2]
[351138081,1738348286963,-691.72,0.0001945,2]
[351138082,1738348286973,-5000.0,0.0001945,4]
[351138083,1738348286982,-694.08,0.0001945,2]
[351138084,1738348286991,-500.0,0.0001945,2]
[351138085,1738348287000,-500.0,0.0001945,2]
[351138086,1738348287009,-622.01,0.0001945,2]
[351138087,1738348287018,-500.0,0.0001945,2]
[351138088,1738348287027,-500.0,0.0001945,2]
[351138089,1738348287037,-209.0,0.0001945,2]
[351138090,1738348287046,-799.89,0.0001945,2]
[351138091,1738348287056,-666.3,0.0001945,2]
[351138092,1738348287066,-209.0,0.0001945,2]
[351138093,1738348287076,-536.21,0.0001945,2]
[351138094,1738348287085,-872.1,0.0001945,2]
[351138095,1738348287095,-1030.96,0.0001945,2]
[351138096,1738348287104,-544.21,0.0001945,2]
[351138097,1738348287113,-4715.16,0.0001945,2]
[351138098,1738348287123,-993.3,0.0001945,2]
[351138099,1738348287133,-2605.9,0.0001945,2]
[351138100,1738348287142,-4721.91,0.0001945,2]
[351138101,1738348287151,-2283.47,0.0001945,2]
[351138102,1738348287160,-939.45,0.0001945,2]
[351138103,1738348287169,-2389.08,0.0001945,2]
[351138104,1738348287178,-965.04,0.0001945,2]
[351138105,1738348287187,-557.93,0.0001945,2]
[351138106,1738348287200,-2395.63,0.0001945,2]
[351138107,1738348287209,-1060.87,0.0001945,2]
[351138108,1738348287218,-1276.49,0.0001945,2]
[351138109,1738348287226,-500.0,0.0001945,2]
[351138110,1738348287235,-973.6,0.0001945,2]
[351138111,1738348287244,-870.13,0.0001945,2]
[351138112,1738348287253,-1177.58,0.0001945,2]
[351138113,1738348287262,-510.61,0.00019451,2]
[351138114,1738348287271,-500.0,0.00019451,2]
[351138115,1738348287280,-1455.79,0.00019452,2]
[351138116,1738348287290,-686.9,0.00019452,2]
[351138117,1738348287299,-2551.27,0.00019452,2]
[351138118,1738348287308,-1359.74,0.00019452,2]
[351138119,1738348287317,-3164.08,0.00019452,2]
[351138120,1738348287328,-1771.52,0.00019452,2]
[351138121,1738348287338,-3352.95,0.00019452,2]
[351138122,1738348287349,-1723.08,0.00019452,2]
[351138123,1738348287358,-904.61,0.00019452,2]
[351138124,1738348287367,-3205.13,0.00019452,2]
[351138125,1738348287379,-2877.99,0.00019452,2]
[351138126,1738348287388,-2087.9,0.00019452,2]
[351138127,1738348287397,-2031.19,0.00019452,2]
[351138128,1738348287406,-1464.79,0.00019452,2]
[351138129,1738348287415,-7094.67,0.00019452,2]
[351138130,1738348287425,-846.73,0.00019452,2]
[351138131,1738348287436,-1572.93,0.00019452,2]
[351138132,1738348287448,-150.0,0.00019452,2]
[351138133,1738348287458,-150.0,0.00019479,4]
[351138134,1738348287467,-150.0,0.00019498,4]
[351138135,1738348287476,-6472.0,0.000195,3]
[351138136,1738348287486,-1000.0,0.000195,2]
[351138137,1738348287495,-110282.98179769,0.000195,2]
[351138138,1738348287504,-172.05062332,0.0001951,2]
[351138139,1738348287518,-1059.0,0.00019531,2]
[351138140,1738348287527,-500.0,0.00019545,2]
[351138141,1738348287537,-154.12,0.00019546,30]
[351138142,1738348287547,-876.87,0.00019547,2]
[351138143,1738348287557,-150.0,0.00019554,4]
[351138144,1738348287567,-300.0,0.0001957,2]
[351138145,1738348287581,-500.0,0.00019585,2]
[351138146,1738348287591,-786.06,0.00019585,2]
[351138147,1738348287602,-744.03,0.00019585,2]
[351138148,1738348287611,-1041.45,0.00019585,2]
[351138149,1738348287621,-679.36,0.00019585,2]
[351138150,1738348287630,-500.0,0.00019585,2]
[351138151,1738348287639,-639.49,0.00019585,2]
[351138152,1738348287648,-983.34,0.00019585,2]
[351138153,1738348287658,-853.27,0.00019585,2]
[351138154,1738348287667,-2290.49,0.00019585,2]
[351138155,1738348287677,-15748.87,0.00019585,2]
[351138156,1738348287686,-1756.23,0.00019585,2]
[351138157,1738348287700,-5804.66,0.00019585,2]
[351138158,1738348287710,-1011.15,0.00019585,2]
[351138159,1738348287719,-1398.05,0.00019585,2]
[351138160,1738348287729,-706.26,0.00019585,2]
[351138161,1738348287738,-1396.62,0.00019585,2]
[351138162,1738348287747,-1348.69,0.00019585,2]
[351138163,1738348287756,-1491.37,0.00019585,2]
[351138164,1738348287766,-500.0,0.00019586,2]
[351138165,1738348287775,-500.0,0.00019586,2]
[351138166,1738348287785,-500.0,0.00019586,2]
[351138167,1738348287795,-592.09,0.00019586,2]
[351138168,1738348287804,-541.54,0.00019586,2]
[351138169,1738348287814,-661.57,0.00019586,2]
[351138170,1738348287823,-568.28,0.00019586,2]
[351138171,1738348287833,-517.91,0.00019586,2]
[351138172,1738348287842,-500.0,0.00019586,2]
[351138173,1738348287852,-573.54,0.00019586,2]
[351138174,1738348287862,-730.37,0.00019586,2]
[351138175,1738348287871,-536.25,0.00019586,2]
[351138176,1738348287881,-978.34,0.00019586,2]
[351138177,1738348287891,-519.92,0.00019586,2]
[351138178,1738348287899,-932.35,0.00019586,2]
[351138179,1738348287909,-1577.73,0.00019586,2]
[351138180,1738348287918,-647.42,0.00019586,2]
[351138181,1738348287927,-286.106421,0.00019586,2]
[351138182,1738348287936,-500.0,0.00019586,2]
[351138183,1738348287951,-551.45,0.00019586,2]
[351138184,1738348287962,-2652.51,0.00019586,2]
[351138185,1738348287971,-616.52,0.00019586,2]
[351138186,1738348287980,-611.99,0.00019586,2]
[351138187,1738348287990,-1917.23,0.00019586,2]
[351138188,1738348288000,-1010.98,0.00019586,2]
[351138189,1738348288009,-345.181563,0.00019586,2]
[351138190,1738348288018,-957.27,0.00019586,2]
[351138191,1738348288028,-1127.11,0.00019586,2]
[351138192,1738348288037,-1746.14,0.00019586,2]
[351138193,1738348288047,-683.39,0.00019586,2]
[351138194,1738348288056,-834.53,0.00019586,2]
[351138195,1738348288066,-3304.95,0.00019586,2]
[351138196,1738348288075,-1375.96,0.00019586,2]
[351138197,1738348288084,-1152.1,0.00019586,2]
[351138198,1738348288094,-637.73,0.00019586,2]
[351138199,1738348288103,-861.45,0.00019586,2]
[351138200,1738348288113,-1174.79,0.00019586,2]
[351138201,1738348288122,-5050.15,0.00019586,2]
[351138202,1738348288131,-1552.68,0.00019586,2]
[351138203,1738348288140,-1714.15,0.00019586,2]
[351138204,1738348288150,-970.54,0.00019586,2]
[351138205,1738348288159,-974.2,0.00019586,2]
[351138206,1738348288168,-2977.2,0.00019586,2]
[351138207,1738348288177,-2472.78,0.00019586,2]
[351138208,1738348288186,-2130.65,0.00019586,2]
[351138209,1738348288200,-2310.79,0.00019586,2]
[351138210,1738348288209,-3082.33,0.00019586,2]
[351138211,1738348288219,-1236.46,0.00019586,2]
[351138212,1738348288228,-500.0,0.00019586,2]
[351138213,1738348288237,-1531.95,0.00019586,2]
[351138214,1738348288246,-1897.38,0.00019586,2]
[351138215,1738348288255,-4150.61,0.00019586,2]
[351138216,1738348288265,-4363.87,0.00019586,2]
[351138217,1738348288274,-500.0,0.00019586,2]
[351138218,1738348288283,-977.31,0.00019586,2]
[351138219,1738348288292,-500.0,0.00019586,2]
[351138220,1738348288302,-755.3,0.00019586,2]
[351138221,1738348288311,-1593.71,0.00019586,2]
[351138222,1738348288320,-209.78,0.00019587,7]
[351138223,1738348288329,-500.0,0.00019587,2]
[351138224,1738348288339,-772.66,0.00019587,2]
[351138225,1738348288350,-500.0,0.00019587,2]
[351138226,1738348288359,-606.93,0.00019587,2]
[351138227,1738348288369,-522.94,0.00019587,2]
[351138228,1738348288379,-691.72,0.00019587,2]
[351138229,1738348288388,-694.08,0.00019587,2]
[351138230,1738348288398,-500.0,0.00019587,2]
[351138231,1738348288407,-500.0,0.00019587,2]
[351138232,1738348288417,-622.01,0.00019587,2]
[351138233,1738348288426,-500.0,0.00019587,2]
[351138234,1738348288436,-500.0,0.00019587,2]
[351138235,1738348288448,-799.89,0.00019587,2]
[351138236,1738348288458,-666.3,0.00019587,2]
[351138237,1738348288468,-536.21,0.00019587,2]
[351138238,1738348288477,-872.1,0.00019587,2]
[351138239,1738348288487,-1030.96,0.00019587,2]
[351138240,1738348288496,-544.21,0.00019587,2]
[351138241,1738348288509,-4715.16,0.00019587,2]
[351138242,1738348288631,-993.3,0.00019587,2]
[351138243,1738348288660,-2605.9,0.00019587,2]
[351138244,1738348288670,-4721.91,0.00019587,2]
[351138245,1738348288679,-2283.47,0.00019587,2]
[351138246,1738348288688,-939.45,0.00019587,2]
[351138247,1738348288701,-2389.08,0.00019587,2]
[351138248,1738348288711,-965.04,0.00019587,2]
[351138249,1738348288720,-557.93,0.00019587,2]
[351138250,1738348288729,-2395.63,0.00019587,2]
[351138251,1738348288739,-1060.87,0.00019587,2]
[351138252,1738348288749,-1276.49,0.00019587,2]
[351138253,1738348288758,-500.0,0.00019587,2]
[351138254,1738348288767,-973.6,0.00019587,2]
[351138255,1738348288777,-870.13,0.00019587,2]
[351138256,1738348288787,-1177.58,0.00019587,2]
[351138257,1738348288796,-510.61,0.00019588,2]
[351138258,1738348288805,-500.0,0.00019588,2]
[351138259,1738348288816,-500.0,0.00019589,7]
[351138260,1738348288825,-1455.96383514,0.00019589,2]
[351138261,1738348288835,-686.94921918,0.00019589,2]
[351138262,1738348288844,-2551.43729568,0.00019589,2]
[351138263,1738348288855,-1359.7976322,0.00019589,2]
[351138264,1738348288864,-3164.21111244,0.00019589,2]
[351138265,1738348288874,-1771.62429635,0.00019589,2]
[351138266,1738348288883,-3353.18612718,0.00019589,2]
[351138267,1738348288892,-1723.14853041,0.00019589,2]
[351138268,1738348288902,-904.65,0.00019589,2]
[351138269,1738348288911,-3205.25453932,0.00019589,2]
[351138270,1738348288920,-2878.08012269,0.00019589,2]
[351138271,1738348288930,-2088.13634595,0.00019589,2]
[351138272,1738348288939,-2031.3062819,0.00019589,2]
[351138273,1738348288952,-1464.97374954,0.00019589,2]
[351138274,1738348288961,-7094.71228664,0.00019589,2]
[351138275,1738348288971,-846.77190427,0.00019589,2]
[351138276,1738348288980,-1572.96761962,0.00019589,2]
[351138277,1738348288990,-150.0,0.000196,4]
[351138278,1738348289000,-150.0,0.00019604,4]
[351138279,1738348289010,-150.0,0.00019611,4]
[351138280,1738348289020,-500.0,0.00019645,2]
[351138281,1738348289030,-212.0,0.0001965,2]
[351138282,1738348289039,-205.0,0.0001965,2]
[351138283,1738348289049,-209.0,0.0001965,2]
[351138284,1738348289058,-206.8921183,0.00019664,2]
[351138285,1738348289067,-150.0,0.00019667,4]
[351138286,1738348289076,-300.0,0.0001967,2]
[351138287,1738348289086,-300.0,0.0001967,2]
[351138288,1738348289096,-502.22740656,0.0001967,2]
[351138289,1738348289105,-400.0,0.0001967,2]
[351138290,1738348289115,-242.61419104,0.00019691,5]
[351138291,1738348289124,-4741.44914257,0.000197,2]
[351138292,1738348289134,-150.0,0.000197,7]
[351138293,1738348289143,-150.0,0.0001972,4]
[351138294,1738348289152,-500.0,0.00019722,2]
[351138295,1738348289162,-786.06,0.00019722,2]
[351138296,1738348289171,-744.03,0.00019722,2]
[351138297,1738348289180,-1041.45,0.00019722,2]
[351138298,1738348289189,-679.36,0.00019722,2]
[351138299,1738348289203,-500.0,0.00019722,2]
[351138300,1738348289212,-639.49,0.00019722,2]
[351138301,1738348289221,-983.34,0.00019722,2]
[351138302,1738348289230,-853.27,0.00019722,2]
[351138303,1738348289239,-2290.49,0.00019722,2]
[351138304,1738348289249,-15748.87,0.00019722,2]
[351138305,1738348289258,-1756.23,0.00019722,2]
[351138306,1738348289268,-5804.66,0.00019722,2]
[351138307,1738348289277,-1011.15,0.00019722,2]
[351138308,1738348289287,-1398.05,0.00019722,2]
[351138309,1738348289296,-706.26,0.00019722,2]
[351138310,1738348289306,-1396.62,0.00019722,2]
[351138311,1738348289315,-1348.69,0.00019722,2]
[351138312,1738348289325,-1491.37,0.00019722,2]
[351138313,1738348289334,-352.64,0.00019723,2]
[351138314,1738348289345,-500.0,0.00019723,2]
[351138315,1738348289355,-500.0,0.00019723,2]
[351138316,1738348289364,-592.09,0.00019723,2]
[351138317,1738348289374,-541.54,0.00019723,2]
[351138318,1738348289384,-661.57,0.00019723,2]
[351138319,1738348289394,-568.28,0.00019723,2]
[351138320,1738348289404,-517.91,0.00019723,2]
[351138321,1738348289414,-500.0,0.00019723,2]
[351138322,1738348289423,-573.54,0.00019723,2]
[351138323,1738348289433,-730.37,0.00019723,2]
[351138324,1738348289445,-536.25,0.00019723,2]
[351138325,1738348289455,-978.34,0.00019723,2]
[351138326,1738348289464,-519.92,0.00019723,2]
[351138327,1738348289474,-932.35,0.00019723,2]
[351138328,1738348289483,-1577.73,0.00019723,2]
[351138329,1738348289492,-647.42,0.00019723,2]
[351138330,1738348289502,-286.106421,0.00019723,2]
[351138331,1738348289514,-497.48860099,0.00019723,2]
[351138332,1738348289524,-551.45,0.00019723,2]
[351138333,1738348289533,-2652.51,0.00019723,2]
[351138334,1738348289544,-616.52,0.00019723,2]
[351138335,1738348289553,-611.99,0.00019723,2]
[351138336,1738348289563,-1917.23,0.00019723,2]
[351138337,1738348289572,-1010.98,0.00019723,2]
[351138338,1738348289583,-345.181563,0.00019723,2]
[351138339,1738348289593,-957.27,0.00019723,2]
[351138340,1738348289602,-1127.11,0.00019723,2]
[351138341,1738348289611,-1746.14,0.00019723,2]
[351138342,1738348289622,-683.39,0.00019723,2]
[351138343,1738348289631,-834.53,0.00019723,2]
[351138344,1738348289640,-3304.95,0.00019723,2]
[351138345,1738348289650,-1375.96,0.00019723,2]
[351138346,1738348289660,-1152.1,0.00019723,2]
[351138347,1738348289669,-637.73,0.00019723,2]
[351138348,1738348289678,-861.45,0.00019723,2]
[351138349,1738348289687,-1174.79,0.00019723,2]
[351138350,1738348289701,-5050.15,0.00019723,2]
[351138351,1738348289711,-1552.68,0.00019723,2]
[351138352,1738348289721,-1714.15,0.00019723,2]
[351138353,1738348289731,-970.54,0.00019723,2]
[351138354,1738348289740,-974.2,0.00019723,2]
[351138355,1738348289750,-2977.2,0.00019723,2]
[351138356,1738348289760,-2472.78,0.00019723,2]
[351138357,1738348289770,-2130.65,0.00019723,2]
[351138358,1738348289780,-2310.79,0.00019723,2]
[351138359,1738348289792,-3082.33,0.00019723,2]
[351138360,1738348289801,-1236.46,0.00019723,2]
[351138361,1738348289811,-500.0,0.00019723,2]
[351138362,1738348289821,-1531.95,0.00019723,2]
[351138363,1738348289830,-1897.38,0.00019723,2]
[351138364,1738348289839,-4150.61,0.00019723,2]
[351138365,1738348289849,-4363.87,0.00019723,2]
[351138366,1738348289858,-500.0,0.00019723,2]
[351138367,1738348289868,-977.31,0.00019723,2]
[351138368,1738348289878,-268.21311801,0.00019723,2]
[351138369,1738348289888,-755.3,0.00019723,2]
[351138370,1738348289897,-1593.71,0.00019723,2]
[351138371,1738348289906,-150.0,0.00019724,4]
[351138372,1738348289916,-516.85809565,0.00019724,2]
[351138373,1738348289925,-772.66,0.00019724,2]
[351138374,1738348289934,-579.24180072,0.00019724,2]
[351138375,1738348289947,-606.93,0.00019724,2]